[Event "55th Biel Festival MTO 2022"]
[Site "Biel"]
[Date "2022.07.15"]
[Round "2.6"]
[White "Gurel Ediz"]
[Black "Shevchenko Kirill"]
[Result "0-1"]
[ECO "B66"]
[WhiteElo "2435"]
[BlackElo "2654"]
[Annotator "ChessBase"]
[PlyCount "92"]
[EventDate "2022.07.13"]
[EventType "swiss"]
[EventCountry "SUI"]
[SourceTitle "playchess.com"]
[Source "ChessBase"]
[SourceQuality "1"]
[TimeControl "40/5400+30:1800+30"]

1. e4 {[%emt 0:00:05]} c5 {[%emt 0:00:07]} 2. Nf3 {[%emt 0:00:00]} Nc6 {[%emt 0:00:32]} 3. d4 {[%emt 0:00:00]} cxd4 {[%emt 0:00:30]} 4. Nxd4 {[%emt 0:00:00]} Nf6 {[%emt 0:00:30]} 5. Nc3 {[%emt 0:00:14]} d6 {[%emt 0:00:30]} 6. Bg5 {[%emt 0:00:30]} e6 {[%emt 0:00:30]} 7. Qd2 {[%emt 0:00:30]} a6 {[%emt 0:00:30]} 8. Nxc6 {[%emt 0:00:30]} bxc6 {[%emt 0:00:30]} 9. O-O-O {[%emt 0:00:30]} Be7 {[%emt 0:00:30]} 10. Bxf6 {[%emt 0:00:19]} gxf6 {[%emt 0:00:10]} 11. Bc4 {[%emt 0:00:12]} Bb7 {[%emt 0:04:17]} 12. Rhe1 {[%emt 0:10:31]} Qa5 {[%emt 0:01:58]} 13. Kb1 {[%emt 0:02:16]} h5 {[%emt 0:11:13]} 14. f4 {[%emt 0:03:22]} O-O-O {[%emt 0:06:31]} 15. Bd3 {[%emt 0:25:43]} Rd7 {[%emt 0:30:15]} 16. f5 {[%emt 0:06:40]} e5 {[%emt 0:02:29]} 17. Nd5 {[%emt 0:20:19]} Bd8 {[%emt 0:06:18]} 18. Nb4 {[%emt 0:13:16]} Qb6 {[%emt 0:05:12]} 19. c3 {[%emt 0:04:15]} a5 {[%emt 0:05:28]} 20. Nc2 {[%emt 0:00:04]} d5 {[%emt 0:02:44]} 21. exd5 {[%emt 0:04:14]} cxd5 {[%emt 0:00:04]} 22. c4 {[%emt 0:00:06]} dxc4 {[%emt 0:06:19]} 23. Qc3 {[%emt 0:00:05]} Rc7 {[%emt 0:00:17]} 24. Be4 {[%emt 0:03:03]} Be7 {[%emt 0:01:15]} 25. Bxb7+ {[%emt 0:00:14]} Kxb7 {[%emt 0:00:30]} 26. a3 {[%emt 0:00:19]} Bc5 {[%emt 0:07:58]} 27. Re4 {[%emt 0:01:12]} Rhc8 {[%emt 0:00:55]} 28. Rxc4 {[%emt 0:00:44]} Kb8 {[%emt 0:02:22]} 29. Qf3 {[%emt 0:04:57]} Bd4 {[%emt 0:01:35]} 30. Rdxd4 {[%emt 0:00:40]} Rxc4 {[%emt 0:01:16]} 31. Rxc4 {[%emt 0:00:36]} Rxc4 {[%emt 0:00:30]} 32. Qd3 {[%emt 0:00:30]} Qc6 {[%emt 0:00:30]} 33. Qb3+ {[%emt 0:00:30]} Ka8 {[%emt 0:00:30]} 34. Ne3 {[%emt 0:00:30]} Rc5 {[%emt 0:00:30]} 35. Qd3 {[%emt 0:00:30]} a4 {[%emt 0:00:30]} 36. Qd8+ {[%emt 0:00:30]} Kb7 {[%emt 0:00:30]} 37. Qe7+ {[%emt 0:00:25]} Ka6 {[%emt 0:00:43]} 38. Ka2 {[%emt 0:00:10]} Rc1 {[%emt 0:01:37]} 39. Qd8 {[%emt 0:00:58]} Qe4 {[%emt 0:00:50]} 40. Qd6+ {[%emt 0:00:06]} Rc6 {[%emt 0:00:28]} 41. Qd7 {[%emt 0:30:31]} Rc1 {[%emt 0:09:16]} 42. Qd6+ {[%emt 0:00:00]} Qc6 {[%emt 0:00:16]} 43. Qd2 {[%emt 0:00:00]} h4 {[%emt 0:01:27]} 44. h3 {[%emt 0:00:00]} Qc5 {[%emt 0:02:10]} 45. b4 {[%emt 0:00:00]} axb3+ {[%emt 0:00:10]} 46. Kb2 {[%emt 0:00:00]} Qd4+ {[%emt 0:00:11]} 0-1

[Event "55th Biel Festival MTO 2022"]
[Site "Biel"]
[Date "2022.07.15"]
[Round "2.7"]
[White "Motylev Alexander"]
[Black "Dushyant Sharma"]
[Result "1-0"]
[ECO "C82"]
[WhiteElo "2632"]
[BlackElo "2416"]
[Annotator "ChessBase"]
[PlyCount "49"]
[EventDate "2022.07.13"]
[EventType "swiss"]
[EventCountry "SUI"]
[SourceTitle "playchess.com"]
[Source "ChessBase"]
[SourceQuality "1"]
[TimeControl "40/5400+30:1800+30"]

1. e4 {[%emt 0:00:11]} e5 {[%emt 0:00:09]} 2. Nf3 {[%emt 0:00:07]} Nc6 {[%emt 0:00:06]} 3. Bb5 {[%emt 0:00:06]} a6 {[%emt 0:00:10]} 4. Ba4 {[%emt 0:00:07]} Nf6 {[%emt 0:00:07]} 5. O-O {[%emt 0:00:07]} Nxe4 {[%emt 0:00:34]} 6. d4 {[%emt 0:00:15]} b5 {[%emt 0:00:05]} 7. Bb3 {[%emt 0:00:06]} d5 {[%emt 0:00:08]} 8. dxe5 {[%emt 0:00:05]} Be6 {[%emt 0:00:05]} 9. c3 {[%emt 0:00:25]} Bc5 {[%emt 0:03:25]} 10. Nbd2 {[%emt 0:00:26]} O-O {[%emt 0:02:02]} 11. Bc2 {[%emt 0:00:25]} Nxf2 {[%emt 0:00:58]} 12. Rxf2 {[%emt 0:00:08]} f6 {[%emt 0:00:12]} 13. Nf1 {[%emt 0:00:39]} Bxf2+ {[%emt 0:00:09]} 14. Kxf2 {[%emt 0:00:06]} fxe5 {[%emt 0:00:12]} 15. Kg1 {[%emt 0:00:25]} Qd6 {[%emt 0:00:15]} 16. Be3 {[%emt 0:00:55]} Bg4 {[%emt 0:27:46]} 17. Bxh7+ {[%emt 0:19:02]} Kh8 {[%emt 0:04:19]} 18. Qe1 {[%emt 0:05:17]} Qf6 {[%emt 0:33:59]} 19. Ng5 {[%emt 0:17:52]} g6 {[%emt 0:08:24]} 20. Qh4 {[%emt 0:01:54]} Bh5 {[%emt 0:00:10]} 21. Ng3 {[%emt 0:02:03]} d4 {[%emt 0:07:01]} 22. Nxh5 {[%emt 0:01:06]} gxh5 {[%emt 0:00:43]} 23. Qxh5 {[%emt 0:00:43]} Kg7 {[%emt 0:01:09]} 24. Be4 {[%emt 0:00:46]} Qh6 {[%emt 0:04:25]} 25. Ne6+ {[%emt 0:00:47]} 1-0

[Event "55th Biel Festival MTO 2022"]
[Site "Biel"]
[Date "2022.07.15"]
[Round "2.8"]
[White "Korley Kassa"]
[Black "Lagarde Maxime"]
[Result "0-1"]
[ECO "A50"]
[WhiteElo "2421"]
[BlackElo "2631"]
[Annotator "ChessBase"]
[PlyCount "212"]
[EventDate "2022.07.13"]
[EventType "swiss"]
[EventCountry "SUI"]
[SourceTitle "playchess.com"]
[Source "ChessBase"]
[SourceQuality "1"]
[TimeControl "40/5400+30:1800+30"]

1. Nf3 {[%emt 0:00:04]} b6 {[%emt 0:02:56]} 2. g3 {[%emt 0:03:49]} Bb7 {[%emt 0:00:09]} 3. Bg2 {[%emt 0:00:03]} g6 {[%emt 0:00:19]} 4. d4 {[%emt 0:01:00]} Bg7 {[%emt 0:00:20]} 5. c4 {[%emt 0:00:43]} Nf6 {[%emt 0:03:23]} 6. d5 {[%emt 0:02:08]} c6 {[%emt 0:12:26]} 7. Nc3 {[%emt 0:01:35]} cxd5 {[%emt 0:00:25]} 8. cxd5 {[%emt 0:00:37]} Na6 {[%emt 0:00:06]} 9. O-O {[%emt 0:05:06]} Rc8 {[%emt 0:07:52]} 10. Nd4 {[%emt 0:05:43]} Rc4 {[%emt 0:03:55]} 11. Ndb5 {[%emt 0:08:26]} Qa8 {[%emt 0:00:38]} 12. e4 {[%emt 0:08:50]} d6 {[%emt 0:02:48]} 13. Qe2 {[%emt 0:01:02]} Rc8 {[%emt 0:00:31]} 14. Be3 {[%emt 0:10:35]} O-O {[%emt 0:02:55]} 15. Rac1 {[%emt 0:00:07]} Nb8 {[%emt 0:05:32]} 16. Bh3 {[%emt 0:09:20]} Nbd7 {[%emt 0:03:34]} 17. f3 {[%emt 0:04:06]} a6 {[%emt 0:04:23]} 18. Nd4 {[%emt 0:04:09]} Rc7 {[%emt 0:07:15]} 19. Rc2 {[%emt 0:00:50]} Ne5 {[%emt 0:03:13]} 20. Na4 {[%emt 0:02:07]} Rxc2 {[%emt 0:00:17]} 21. Qxc2 {[%emt 0:00:14]} b5 {[%emt 0:01:14]} 22. Nb6 {[%emt 0:01:32]} Qd8 {[%emt 0:02:25]} 23. Nc6 {[%emt 0:05:36]} Bxc6 {[%emt 0:06:59]} 24. dxc6 {[%emt 0:00:05]} Qc7 {[%emt 0:00:05]} 25. Nd5 {[%emt 0:08:35]} Nxd5 {[%emt 0:00:10]} 26. exd5 {[%emt 0:00:03]} Nc4 {[%emt 0:01:21]} 27. Bf2 {[%emt 0:00:05]} Bxb2 {[%emt 0:04:05]} 28. a4 {[%emt 0:00:27]} e6 {[%emt 0:07:53]} 29. axb5 {[%emt 0:02:15]} axb5 {[%emt 0:00:40]} 30. dxe6 {[%emt 0:06:14]} Qxc6 {[%emt 0:02:44]} 31. exf7+ {[%emt 0:00:05]} Kxf7 {[%emt 0:01:00]} 32. f4 {[%emt 0:01:26]} Bf6 {[%emt 0:06:40]} 33. Bg2 {[%emt 0:00:14]} Qa6 {[%emt 0:00:51]} 34. h4 {[%emt 0:03:47]} Kg7 {[%emt 0:00:37]} 35. h5 {[%emt 0:00:17]} Qa3 {[%emt 0:02:52]} 36. Qe2 {[%emt 0:01:32]} Qb2 {[%emt 0:00:55]} 37. Qe6 {[%emt 0:01:50]} gxh5 {[%emt 0:00:52]} 38. Bd5 {[%emt 0:01:58]} Kh8 {[%emt 0:02:36]} 39. Qf5 {[%emt 0:00:40]} Nd2 {[%emt 0:00:37]} 40. Re1 {[%emt 0:00:36]} h4 {[%emt 0:02:11]} 41. Kh1 {[%emt 0:04:19]} hxg3 {[%emt 0:08:44]} 42. Bxg3 {[%emt 0:00:11]} Bg7 {[%emt 0:06:04]} 43. Qh5 {[%emt 0:00:59]} Qc2 {[%emt 0:02:09]} 44. Re8 {[%emt 0:03:50]} Qb1+ {[%emt 0:08:24]} 45. Kg2 {[%emt 0:00:57]} Qf1+ {[%emt 0:00:06]} 46. Kh2 {[%emt 0:00:09]} Qd3 {[%emt 0:00:14]} 47. Rxf8+ {[%emt 0:04:12]} Bxf8 {[%emt 0:00:04]} 48. Bh4 {[%emt 0:04:56]} Qg6 {[%emt 0:02:50]} 49. Qe2 {[%emt 0:00:29]} Nc4 {[%emt 0:01:56]} 50. Bxc4 {[%emt 0:03:50]} bxc4 {[%emt 0:00:14]} 51. Qxc4 {[%emt 0:00:02]} Qf5 {[%emt 0:01:18]} 52. Kg3 {[%emt 0:03:19]} Kg7 {[%emt 0:00:56]} 53. Qc7+ {[%emt 0:01:04]} Kg6 {[%emt 0:00:34]} 54. Qc6 {[%emt 0:02:15]} Qd3+ {[%emt 0:01:26]} 55. Kg2 {[%emt 0:00:10]} Qe2+ {[%emt 0:00:18]} 56. Bf2 {[%emt 0:00:38]} Qe6 {[%emt 0:00:32]} 57. Bg3 {[%emt 0:02:03]} Kf5 {[%emt 0:01:49]} 58. Kh2 {[%emt 0:01:15]} Kg4 {[%emt 0:01:08]} 59. Qg2 {[%emt 0:01:33]} Qh6+ {[%emt 0:00:05]} 60. Bh4+ {[%emt 0:00:34]} Kxf4 {[%emt 0:00:22]} 61. Qg3+ {[%emt 0:02:09]} Ke4 {[%emt 0:00:04]} 62. Qg4+ {[%emt 0:00:05]} Ke5 {[%emt 0:00:43]} 63. Qg3+ {[%emt 0:01:19]} Ke6 {[%emt 0:00:53]} 64. Qg4+ {[%emt 0:00:27]} Kf7 {[%emt 0:00:19]} 65. Qf3+ {[%emt 0:01:57]} Kg7 {[%emt 0:00:27]} 66. Qc3+ {[%emt 0:00:11]} Kg6 {[%emt 0:00:12]} 67. Qg3+ {[%emt 0:02:41]} Kh5 {[%emt 0:01:10]} 68. Qh3 {[%emt 0:00:05]} Qd2+ {[%emt 0:00:51]} 69. Bf2+ {[%emt 0:00:10]} Kg6 {[%emt 0:00:22]} 70. Qe6+ {[%emt 0:00:08]} Kg7 {[%emt 0:00:14]} 71. Qg4+ {[%emt 0:00:44]} Kh8 {[%emt 0:00:30]} 72. Kg1 {[%emt 0:00:39]} Qc1+ {[%emt 0:00:06]} 73. Kg2 {[%emt 0:00:23]} Bg7 {[%emt 0:01:12]} 74. Qe4 {[%emt 0:00:14]} Qg5+ {[%emt 0:00:32]} 75. Kf1 {[%emt 0:00:46]} Be5 {[%emt 0:00:05]} 76. Qa8+ {[%emt 0:00:11]} Kg7 {[%emt 0:00:04]} 77. Qb7+ {[%emt 0:00:17]} Kg6 {[%emt 0:00:29]} 78. Qd5 {[%emt 0:00:18]} Kf6 {[%emt 0:00:40]} 79. Qa8 {[%emt 0:00:17]} Qf5 {[%emt 0:00:28]} 80. Qf8+ {[%emt 0:01:19]} Kg6 {[%emt 0:00:33]} 81. Qg8+ {[%emt 0:00:23]} Kh5 {[%emt 0:00:17]} 82. Qe8+ {[%emt 0:00:26]} Qg6 {[%emt 0:01:00]} 83. Qc6 {[%emt 0:00:09]} Qb1+ {[%emt 0:00:14]} 84. Kg2 {[%emt 0:00:08]} Qf5 {[%emt 0:00:14]} 85. Qd5 {[%emt 0:00:30]} h6 {[%emt 0:01:33]} 86. Kf1 {[%emt 0:00:31]} Kg6 {[%emt 0:00:22]} 87. Qg8+ {[%emt 0:00:30]} Bg7 {[%emt 0:00:05]} 88. Qe8+ {[%emt 0:00:24]} Kh7 {[%emt 0:00:08]} 89. Qc6 {[%emt 0:01:54]} d5 {[%emt 0:00:38]} 90. Ke2 {[%emt 0:00:24]} Qe4+ {[%emt 0:00:26]} 91. Kd2 {[%emt 0:00:34]} Qb4+ {[%emt 0:00:23]} 92. Kd1 {[%emt 0:00:23]} Qb3+ {[%emt 0:00:29]} 93. Kd2 {[%emt 0:00:19]} Qb2+ {[%emt 0:00:10]} 94. Kd3 {[%emt 0:00:35]} Qb3+ {[%emt 0:01:14]} 95. Kd2 {[%emt 0:00:06]} Qf3 {[%emt 0:00:30]} 96. Qc2+ {[%emt 0:00:24]} Kg8 {[%emt 0:00:13]} 97. Qc8+ {[%emt 0:00:39]} Qf8 {[%emt 0:00:04]} 98. Qe6+ {[%emt 0:00:19]} Qf7 {[%emt 0:00:05]} 99. Qb6 {[%emt 0:00:25]} h5 {[%emt 0:00:51]} 100. Ke2 {[%emt 0:00:33]} Qf5 {[%emt 0:00:25]} 101. Qd8+ {[%emt 0:00:23]} Kh7 {[%emt 0:00:20]} 102. Qb6 {[%emt 0:00:42]} Qe4+ {[%emt 0:00:36]} 103. Kf1 {[%emt 0:00:17]} h4 {[%emt 0:01:32]} 104. Qd8 {[%emt 0:00:10]} h3 {[%emt 0:00:41]} 105. Qg5 {[%emt 0:00:45]} Qf3 {[%emt 0:00:54]} 106. Ke1 {[%emt 0:02:00]} Bf6 {[%emt 0:00:25]} 0-1

[Event "55th Biel Festival MTO 2022"]
[Site "Biel"]
[Date "2022.07.15"]
[Round "2.9"]
[White "Sethuraman S.P."]
[Black "Peyrer, Konstantin"]
[Result "1-0"]
[ECO "B12"]
[WhiteElo "2623"]
[BlackElo "2406"]
[Annotator "ChessBase"]
[PlyCount "75"]
[EventDate "2022.07.13"]
[EventType "swiss"]
[EventCountry "SUI"]
[SourceTitle "playchess.com"]
[Source "ChessBase"]
[SourceQuality "1"]
[TimeControl "40/5400+30:1800+30"]

1. e4 {[%emt 0:01:07]} c6 {[%emt 0:00:15]} 2. d4 {[%emt 0:00:07]} d5 {[%emt 0:00:06]} 3. e5 {[%emt 0:00:02]} c5 {[%emt 0:00:06]} 4. dxc5 {[%emt 0:00:04]} e6 {[%emt 0:00:06]} 5. Qg4 {[%emt 0:00:03]} h5 {[%emt 0:00:41]} 6. Qf4 {[%emt 0:00:14]} Bxc5 {[%emt 0:03:23]} 7. Nc3 {[%emt 0:01:20]} Nc6 {[%emt 0:01:11]} 8. Nf3 {[%emt 0:00:20]} Nh6 {[%emt 0:01:44]} 9. Bd3 {[%emt 0:02:48]} Nb4 {[%emt 0:04:57]} 10. O-O {[%emt 0:01:45]} Nxd3 {[%emt 0:03:51]} 11. cxd3 {[%emt 0:00:06]} Bd7 {[%emt 0:02:31]} 12. Ne2 {[%emt 0:09:18]} Bb5 {[%emt 0:07:52]} 13. Rd1 {[%emt 0:05:49]} h4 {[%emt 0:13:52]} 14. a4 {[%emt 0:24:52]} Bd7 {[%emt 0:02:48]} 15. Nxh4 {[%emt 0:02:06]} Be7 {[%emt 0:21:53]} 16. Nf3 {[%emt 0:02:46]} Nf5 {[%emt 0:00:37]} 17. Qg4 {[%emt 0:03:02]} Qb6 {[%emt 0:04:03]} 18. Bg5 {[%emt 0:05:54]} Bc5 {[%emt 0:11:59]} 19. d4 {[%emt 0:04:41]} Qxb2 {[%emt 0:00:05]} 20. Ng3 {[%emt 0:09:59]} Nxg3 {[%emt 0:00:31]} 21. dxc5 {[%emt 0:07:46]} Ne2+ {[%emt 0:00:20]} 22. Kh1 {[%emt 0:00:55]} Nc3 {[%emt 0:00:36]} 23. Rf1 {[%emt 0:00:10]} Ne4 {[%emt 0:09:06]} 24. Be3 {[%emt 0:00:05]} g5 {[%emt 0:00:12]} 25. Rab1 {[%emt 0:08:36]} Qe2 {[%emt 0:00:15]} 26. Bxg5 {[%emt 0:00:50]} Nxf2+ {[%emt 0:03:05]} 27. Rxf2 {[%emt 0:00:03]} Qxf2 {[%emt 0:00:08]} 28. Bf6 {[%emt 0:02:57]} Qc2 {[%emt 0:00:24]} 29. Re1 {[%emt 0:03:03]} Rf8 {[%emt 0:00:31]} 30. h4 {[%emt 0:00:25]} Qxa4 {[%emt 0:04:51]} 31. Qg7 {[%emt 0:00:08]} Bc6 {[%emt 0:00:18]} 32. h5 {[%emt 0:00:25]} Qc2 {[%emt 0:01:54]} 33. h6 {[%emt 0:04:31]} Kd7 {[%emt 0:01:44]} 34. h7 {[%emt 0:00:25]} Qg6 {[%emt 0:00:53]} 35. Qxg6 {[%emt 0:00:19]} fxg6 {[%emt 0:00:01]} 36. Kh2 {[%emt 0:00:16]} a5 {[%emt 0:00:50]} 37. Kg3 {[%emt 0:00:04]} a4 {[%emt 0:00:36]} 38. Nh4 {[%emt 0:00:29]} 1-0

[Event "55th Biel Festival MTO 2022"]
[Site "Biel"]
[Date "2022.07.15"]
[Round "2.10"]
[White "Materia, Marco"]
[Black "Iturrizaga Bonelli Eduardo"]
[Result "1/2-1/2"]
[ECO "E11"]
[WhiteElo "2409"]
[BlackElo "2619"]
[Annotator "ChessBase"]
[PlyCount "40"]
[EventDate "2022.07.13"]
[EventType "swiss"]
[EventCountry "SUI"]
[SourceTitle "playchess.com"]
[Source "ChessBase"]
[SourceQuality "1"]
[TimeControl "40/5400+30:1800+30"]

1. d4 {[%emt 0:00:03]} e6 {[%emt 0:05:51]} 2. c4 {[%emt 0:00:19]} Bb4+ {[%emt 0:00:18]} 3. Bd2 {[%emt 0:01:33]} a5 {[%emt 0:00:04]} 4. Nf3 {[%emt 0:01:30]} Nf6 {[%emt 0:00:07]} 5. a3 {[%emt 0:00:15]} Bxd2+ {[%emt 0:00:23]} 6. Qxd2 {[%emt 0:00:05]} d6 {[%emt 0:01:06]} 7. Nc3 {[%emt 0:00:25]} Nbd7 {[%emt 0:00:57]} 8. e4 {[%emt 0:04:32]} e5 {[%emt 0:00:04]} 9. Be2 {[%emt 0:07:22]} O-O {[%emt 0:00:40]} 10. O-O {[%emt 0:03:19]} a4 {[%emt 0:18:37]} 11. Rfe1 {[%emt 0:06:43]} exd4 {[%emt 0:04:44]} 12. Nxd4 {[%emt 0:00:23]} Nc5 {[%emt 0:00:05]} 13. Bf1 {[%emt 0:07:42]} Re8 {[%emt 0:00:39]} 14. Qc2 {[%emt 0:02:08]} Nfd7 {[%emt 0:03:47]} 15. Re3 {[%emt 0:06:58]} Nb6 {[%emt 0:00:26]} 16. Nd5 {[%emt 0:04:46]} c6 {[%emt 0:05:31]} 17. Nxb6 {[%emt 0:06:27]} Qxb6 {[%emt 0:07:53]} 18. Rae1 {[%emt 0:11:16]} Bd7 {[%emt 0:00:30]} 19. Qc3 {[%emt 0:00:30]} f6 {[%emt 0:00:30]} 20. g3 {[%emt 0:03:57]} Qa5 {[%emt 0:02:44]} 1/2-1/2

[Event "55th Biel Festival MTO 2022"]
[Site "Biel"]
[Date "2022.07.15"]
[Round "2.11"]
[White "Puranik Abhimanyu"]
[Black "Stijve, Theo"]
[Result "1-0"]
[ECO "A09"]
[WhiteElo "2612"]
[BlackElo "2394"]
[Annotator "ChessBase"]
[PlyCount "59"]
[EventDate "2022.07.13"]
[EventType "swiss"]
[EventCountry "SUI"]
[SourceTitle "playchess.com"]
[Source "ChessBase"]
[SourceQuality "1"]
[TimeControl "40/5400+30:1800+30"]

1. Nf3 {[%emt 0:00:20]} d5 {[%emt 0:00:07]} 2. c4 {[%emt 0:00:07]} d4 {[%emt 0:00:04]} 3. b4 {[%emt 0:00:06]} g5 {[%emt 0:00:05]} 4. g3 {[%emt 0:00:37]} g4 {[%emt 0:04:09]} 5. Nh4 {[%emt 0:00:19]} e5 {[%emt 0:01:43]} 6. Bg2 {[%emt 0:00:08]} Ne7 {[%emt 0:06:01]} 7. O-O {[%emt 0:03:51]} Ng6 {[%emt 0:03:15]} 8. e3 {[%emt 0:01:01]} Nxh4 {[%emt 0:12:14]} 9. gxh4 {[%emt 0:02:25]} Nc6 {[%emt 0:05:18]} 10. b5 {[%emt 0:09:30]} Ne7 {[%emt 0:05:48]} 11. exd4 {[%emt 0:03:18]} Qxd4 {[%emt 0:02:15]} 12. Qb3 {[%emt 0:03:07]} Be6 {[%emt 0:03:57]} 13. Bb2 {[%emt 0:05:49]} Qc5 {[%emt 0:06:28]} 14. d3 {[%emt 0:13:30]} O-O-O {[%emt 0:03:30]} 15. Nd2 {[%emt 0:02:26]} f5 {[%emt 0:06:07]} 16. Ba3 {[%emt 0:10:22]} Qd4 {[%emt 0:03:25]} 17. Qa4 {[%emt 0:01:12]} g3 {[%emt 0:22:37]} 18. hxg3 {[%emt 0:07:41]} Bd5 {[%emt 0:00:30]} 19. Nb3 {[%emt 0:06:44]} Qg4 {[%emt 0:00:33]} 20. Qxa7 {[%emt 0:01:00]} Bxg2 {[%emt 0:01:01]} 21. Nc5 {[%emt 0:01:41]} b6 {[%emt 0:00:27]} 22. Qa6+ {[%emt 0:00:35]} Kb8 {[%emt 0:00:10]} 23. Kxg2 {[%emt 0:00:03]} bxc5 {[%emt 0:00:37]} 24. b6 {[%emt 0:00:02]} Nc8 {[%emt 0:03:37]} 25. Rab1 {[%emt 0:01:37]} Rd6 {[%emt 0:04:15]} 26. Bxc5 {[%emt 0:01:43]} Rg8 {[%emt 0:01:46]} 27. bxc7+ {[%emt 0:00:36]} Kxc7 {[%emt 0:00:09]} 28. Rb7+ {[%emt 0:00:02]} Kd8 {[%emt 0:00:11]} 29. Qa5+ {[%emt 0:00:05]} Ke8 {[%emt 0:01:05]} 30. Qb5+ {[%emt 0:00:08]} 1-0

[Event "55th Biel Festival MTO 2022"]
[Site "Biel"]
[Date "2022.07.15"]
[Round "2.12"]
[White "Katz, Alexander"]
[Black "Banusz Tamas"]
[Result "1/2-1/2"]
[ECO "C76"]
[WhiteElo "2402"]
[BlackElo "2611"]
[Annotator "ChessBase"]
[PlyCount "86"]
[EventDate "2022.07.13"]
[EventType "swiss"]
[EventCountry "SUI"]
[SourceTitle "playchess.com"]
[Source "ChessBase"]
[SourceQuality "1"]
[TimeControl "40/5400+30:1800+30"]

1. e4 {[%emt 0:00:03]} e5 {[%emt 0:04:28]} 2. Nf3 {[%emt 0:00:05]} Nc6 {[%emt 0:00:06]} 3. Bb5 {[%emt 0:00:08]} g6 {[%emt 0:00:27]} 4. c3 {[%emt 0:01:13]} a6 {[%emt 0:00:25]} 5. Ba4 {[%emt 0:00:20]} d6 {[%emt 0:00:37]} 6. d4 {[%emt 0:02:06]} Bd7 {[%emt 0:00:23]} 7. d5 {[%emt 0:12:15]} Nce7 {[%emt 0:00:44]} 8. c4 {[%emt 0:00:10]} Bg7 {[%emt 0:03:38]} 9. Nc3 {[%emt 0:00:12]} Nf6 {[%emt 0:04:04]} 10. O-O {[%emt 0:01:34]} O-O {[%emt 0:04:21]} 11. Bxd7 {[%emt 0:00:07]} Nxd7 {[%emt 0:00:09]} 12. Be3 {[%emt 0:01:16]} h6 {[%emt 0:00:49]} 13. Nd2 {[%emt 0:01:07]} f5 {[%emt 0:00:53]} 14. f3 {[%emt 0:00:08]} f4 {[%emt 0:04:42]} 15. Bf2 {[%emt 0:00:05]} g5 {[%emt 0:00:42]} 16. b4 {[%emt 0:03:14]} Qe8 {[%emt 0:05:11]} 17. c5 {[%emt 0:04:23]} Qg6 {[%emt 0:01:21]} 18. Nc4 {[%emt 0:00:54]} h5 {[%emt 0:10:43]} 19. Qa4 {[%emt 0:05:29]} Rfd8 {[%emt 0:10:12]} 20. Qa5 {[%emt 0:11:43]} Rac8 {[%emt 0:04:18]} 21. a4 {[%emt 0:20:08]} g4 {[%emt 0:03:03]} 22. Bh4 {[%emt 0:07:05]} Bf6 {[%emt 0:02:08]} 23. c6 {[%emt 0:02:27]} bxc6 {[%emt 0:13:42]} 24. dxc6 {[%emt 0:00:11]} Bxh4 {[%emt 0:03:46]} 25. cxd7 {[%emt 0:00:05]} Rxd7 {[%emt 0:00:09]} 26. Qxa6 {[%emt 0:00:13]} Kh7 {[%emt 0:00:52]} 27. Nd2 {[%emt 0:08:26]} Rg8 {[%emt 0:02:28]} 28. Ra2 {[%emt 0:02:46]} Qe6 {[%emt 0:01:25]} 29. Kh1 {[%emt 0:02:02]} Rdd8 {[%emt 0:04:20]} 30. a5 {[%emt 0:01:06]} Rb8 {[%emt 0:00:44]} 31. Rb1 {[%emt 0:02:33]} Bf2 {[%emt 0:01:00]} 32. Qe2 {[%emt 0:05:31]} Bd4 {[%emt 0:01:41]} 33. Rc2 {[%emt 0:00:16]} c6 {[%emt 0:03:22]} 34. b5 {[%emt 0:02:21]} cxb5 {[%emt 0:00:07]} 35. Nxb5 {[%emt 0:00:19]} Bc5 {[%emt 0:00:43]} 36. Rcb2 {[%emt 0:00:50]} Rbc8 {[%emt 0:00:59]} 37. a6 {[%emt 0:01:20]} Rg7 {[%emt 0:01:15]} 38. Nb3 {[%emt 0:01:32]} Be3 {[%emt 0:02:37]} 39. Rd1 {[%emt 0:00:08]} d5 {[%emt 0:02:39]} 40. exd5 {[%emt 0:01:05]} Qxa6 {[%emt 0:00:56]} 41. d6 {[%emt 0:06:30]} Ng8 {[%emt 0:11:50]} 42. Qd3+ {[%emt 0:04:25]} Kh6 {[%emt 0:02:42]} 43. d7 {[%emt 0:04:58]} Rd8 {[%emt 0:01:54]} 1/2-1/2

[Event "55th Biel Festival MTO 2022"]
[Site "Biel"]
[Date "2022.07.15"]
[Round "2.13"]
[White "Aryan Chopra"]
[Black "Aziz, Husain"]
[Result "1-0"]
[ECO "D35"]
[WhiteElo "2610"]
[BlackElo "2380"]
[Annotator "ChessBase"]
[PlyCount "69"]
[EventDate "2022.07.13"]
[EventType "swiss"]
[EventCountry "SUI"]
[SourceTitle "playchess.com"]
[Source "ChessBase"]
[SourceQuality "1"]
[TimeControl "40/5400+30:1800+30"]

1. c4 {[%emt 0:00:18]} e6 {[%emt 0:01:18]} 2. Nc3 {[%emt 0:00:09]} d5 {[%emt 0:00:21]} 3. d4 {[%emt 0:00:06]} Nf6 {[%emt 0:00:46]} 4. cxd5 {[%emt 0:00:08]} exd5 {[%emt 0:00:37]} 5. Bg5 {[%emt 0:00:10]} c6 {[%emt 0:00:58]} 6. e3 {[%emt 0:00:10]} Be7 {[%emt 0:03:42]} 7. Bd3 {[%emt 0:00:13]} O-O {[%emt 0:01:53]} 8. Nge2 {[%emt 0:00:14]} Ne4 {[%emt 0:04:16]} 9. Bxe7 {[%emt 0:01:14]} Qxe7 {[%emt 0:00:29]} 10. Bxe4 {[%emt 0:02:58]} dxe4 {[%emt 0:00:12]} 11. Qc2 {[%emt 0:02:26]} f5 {[%emt 0:02:32]} 12. Nf4 {[%emt 0:06:42]} Na6 {[%emt 0:08:52]} 13. Qb3+ {[%emt 0:10:16]} Qf7 {[%emt 0:03:17]} 14. Qxf7+ {[%emt 0:00:59]} Kxf7 {[%emt 0:00:14]} 15. h4 {[%emt 0:00:57]} Re8 {[%emt 0:10:36]} 16. Kd2 {[%emt 0:16:27]} Be6 {[%emt 0:11:27]} 17. g4 {[%emt 0:04:46]} c5 {[%emt 0:06:09]} 18. d5 {[%emt 0:16:34]} Rad8 {[%emt 0:08:05]} 19. Nxe6 {[%emt 0:14:21]} Rxe6 {[%emt 0:00:12]} 20. gxf5 {[%emt 0:00:04]} Re5 {[%emt 0:00:38]} 21. f3 {[%emt 0:00:07]} exf3 {[%emt 0:05:29]} 22. e4 {[%emt 0:00:28]} Nc7 {[%emt 0:00:27]} 23. Ke3 {[%emt 0:00:32]} Ne8 {[%emt 0:13:47]} 24. Kf4 {[%emt 0:01:43]} Kf6 {[%emt 0:00:01]} 25. Nd1 {[%emt 0:00:06]} Nd6 {[%emt 0:00:56]} 26. Nf2 {[%emt 0:00:08]} h5 {[%emt 0:01:18]} 27. Rhg1 {[%emt 0:00:47]} Nxf5 {[%emt 0:01:02]} 28. exf5 {[%emt 0:00:57]} Rxf5+ {[%emt 0:00:10]} 29. Ke3 {[%emt 0:00:06]} Re8+ {[%emt 0:08:32]} 30. Ne4+ {[%emt 0:00:16]} Kf7 {[%emt 0:00:06]} 31. Rg5 {[%emt 0:01:00]} g6 {[%emt 0:02:14]} 32. Kd3 {[%emt 0:04:31]} Rd8 {[%emt 0:00:15]} 33. Rxf5+ {[%emt 0:01:44]} gxf5 {[%emt 0:00:07]} 34. Ng5+ {[%emt 0:02:46]} Kf6 {[%emt 0:00:07]} 35. Kc4 {[%emt 0:00:03]} 1-0